Workbook

Sheet Tomat 300 eko
A1: Liten ekologisk tomatodling, kort kultur, enkel värme | F1: Växthus: 300 m2 plasttunnel
A2: Kort kultur | C2: Kulturtid: v. 12 - 43 | F2: täckt med dubbel folie
A3: Skördenivå | C3: 28 | D3: kg/m2
C5: Per | D5: 300 | E5: m2 | F5: Per 1000 m2 | G5: kr/kg
B7: Enh. | C7: Antal | D7: à-pris | E7: summa
A8: Intäkter | C8: =C3*D5 -> 8400 | D8: =(E27+E38)/C8 -> 29.1660978 | E8: =C8*D8 -> 244995.2215 | F8: =E8*1000/D5 -> 816650.7385 | G8: =F8/$C$3/1000 -> 29.1660978
G9: =F9/$C$3/1000 -> 0
A10: Kostnader | G10: 0
A11: Arbete | B11: tim | C11: =E56 -> 360.7108571 | D11: 200 | E11: =C11*D11 -> 72142.17143 | F11: =E11*1000/$D$5 -> 240473.9048 | G11: 8.588353741
A12: Pellets | B12: ton | C12: ='Arbete 300 m2 ekotomat'!L65 -> 22.94799054 | D12: 1700 | E12: 39011.58392 | F12: =E12*1000/$D$5 -> 130038.6131 | G12: 4.644236181
A13: El | B13: kWh | C13: 1000 | D13: 0.75 | E13: 750 | F13: 2500 | G13: 0.08928571429
A14: Plantor | B14: st | C14: 390 | D14: 36 | E14: 14040 | F14: 46800 | G14: 1.671428571
A15: Uppbindning/Div | B15: st | C15: 300 | D15: 6 | E15: 1800 | F15: 6000 | G15: 0.2142857143
A16: Jordförbättring | B16: m3 | C16: 3 | D16: 400 | E16: 1200 | F16: 4000 | G16: 0.1428571429
A17: Gödsel | B17: m2 | C17: 300 | D17: 8 | E17: =C17*D17 -> 2400 | F17: 8000 | G17: 0.2857142857
A18: Vatten | B18: m3 | C18: 200 | D18: 6 | E18: =C18*D18 -> 1200 | F18: 4000 | G18: 0.1428571429
A19: Biol.bek, såpa | C19: =D5 -> 300 | D19: 5 | E19: =C19*D19 -> 1500 | F19: 5000 | G19: 0.1785714286
A20: Humlor | B20: samh. | C20: 3 | D20: 650 | E20: 2500 | F20: 8333.333333 | G20: 0.2976190476
A21: Analyser | C21: 4 | D21: 300 | E21: 2500 | F21: 8333.333333 | G21: 0.2976190476
A22: Ränta driftskapital | B22: kr | C22: =SUM(E11:E21) -> 139043.7554 | D22: 0.02 | E22: =C22*D22 -> 2780.875107 | F22: 9269.58369 | G22: 0.3310565604
A24: Emballage (5,5 kg retur) | B24: st | C24: =C8/5.5 -> 1527.272727 | D24: 2.2 | E24: =C24*D24 -> 3360 | F24: 11200 | G24: 0.4
A25: Transporter | C25: =C8 -> 8400 | D25: 0.25 | E25: =C25*D25 -> 2100 | F25: 7000 | G25: 0.25
A26: Försäljningskostnad | C26: =(SUM(E11:E25)+E38)/(1-D26) -> 244995.2215 | D26: 0.03 | E26: =C26*D26 -> 7349.856646 | F26: 24499.52215 | G26: 0.8749829341
A27: Summa särkostnader | E27: =SUM(E11:E26) -> 154634.4871 | F27: 515448.2904 | G27: 18.40886751
A28: TB | E28: =E8-E27 -> 90360.73443 | F28: 301202.4481 | G28: 10.75723029
A30: Samkostnader
A31: Kravavgifter | E31: 2675 | F31: 8916.666667 | G31: 0.318452381
A32: Adm. Samkostnader | C32: =D5 -> 300 | D32: 30 | E32: =C32*D32 -> 9000 | F32: 30000 | G32: 1.071428571
A33: Mark | C33: =D5 -> 300 | D33: 3 | E33: =C33*D33 -> 900 | F33: 3000 | G33: 0.1071428571
A34: Underhåll | C34: =D5 -> 300 | D34: 20 | E34: =C34*D34 -> 6000 | F34: 20000 | G34: 0.7142857143
A35: Avskr växthus | C35: ='Inv-båghus'!B34 -> 458000 | D35: 0.1 | E35: =C35*D35 -> 45800 | F35: 152666.6667 | G35: 5.452380952
A36: Avskr. Invent. | C36: ='Inv-båghus'!B35 -> 54000 | D36: 0.2 | E36: =C36*D36 -> 10800 | F36: 36000 | G36: 1.285714286
A37: Räntor | E37: ='Inv-båghus'!G36 -> 15185.73443 | F37: 50619.11478 | G37: 1.807825528
A38: S:a samkostnader | E38: =SUM(E31:E37) -> 90360.73443 | F38: 301202.4481 | G38: 10.75723029 | H38: =SUM(G35:G37) -> 8.545920766
A39: Resultat | E39: =E28-E38 -> 0 | F39: 0 | G39: 0
A43: Arbete
A44: Moment | C44: Arbete
C45: arealb. | D45: skördeb.
A47: Plantering/Uppbindning | B47: tim | C47: ='Arbete 300 m2 ekotomat'!D20+'Arbete 300 m2 ekotomat'!D21 -> 35
A48: Pincering/nedläggning | B48: tim | C48: ='Arbete 300 m2 ekotomat'!F62 -> 74.568
A49: Avbladning | B49: tim | C49: ='Arbete 300 m2 ekotomat'!G62 -> 28.6
A50: Övrigt arbete | B50: tim | C50: ='Arbete 300 m2 ekotomat'!H62 -> 65.74285714
A51: Skörd/Packning | B51: tim | D51: ='Arbete 300 m2 ekotomat'!J62 -> 136.8
A52: Utrivning/sanering | B52: tim | C52: ='Arbete 300 m2 ekotomat'!D53+'Arbete 300 m2 ekotomat'!D54 -> 20
A53: Försäljning | B53: tim
A54: Transporter externt | B54: tim | E54: Summa
E55: arbete
A56: Summa | B56: tim | C56: =SUM(C47:C55) -> 223.9108571 | D56: =SUM(D47:D55) -> 136.8 | E56: =C56+D56 -> 360.7108571
A60: Känslighetsanalys för hur skörden påverkar självkostnadspriset
A63: Skörd (kg/m2) | B63: 20 | C63: 24 | D63: 28 | E63: 32 | F63: 36
A64: Självkostnadspris (kr/kg) | B64: 39.19448096 | C64: 33.34459078 | D64: 29.1660978 | E64: 26.03222807 | F64: 23.59477383

Sheet Arbete 300 m2 ekotomat
A1: Arbete i tomatodling | C1: Ekologisk liten | F1: Arbetsprestationer | K1: Resultat
B2: Areal | C2: 300 | D2: m2 | F2: Pincering/Snurrning | H2: 250 | I2: toppar/tim | K2: Skörd | L2: ='Tomat 300 eko'!C3 -> 28 | M2: kg/m2
B3: Normalskörd | C3: 28 | D3: kg/m2 | F3: Avbladning | H3: 600 | I3: toppar/tim | K3: Arbete | L3: =K62*1000/C2 -> 1202.369524 | M3: tim/1000 m2
B4: Planttäthet | C4: 1.3 | D4: pl/m2 | F4: Tillsyn, bek mm | H4: 350 | I4: toppar/tim | K4: Pro.pris | L4: ='Tomat 300 eko'!D8 -> 29.1660978 | M4: kr/kg
A6: Vecka | B6: Text | C6: Skörd | D6: Övrigt | E6: Toppar | F6: Pincering | G6: Avbladn. | H6: Tillsyn | I6: Skörd | J6: Skörde- | K6: Summa | L6: Energi
D7: arbete | E7: per planta | F7: Snurrning | H7: Bek/gödsl | I7: sortering | J7: arbete | K7: arbete | L7: förbrukning
C8: kg/m2 | D8: tim/vecka | E8: st | F8: tim/vecka | G8: tim/vecka | H8: tim/vecka | I8: (kg/tim) | J8: tim/vecka | K8: tim/vecka | L8: MWh/vecka
D9: hela ytan
A10: 1 | K10: =D10+F10+G10+H10+J10 -> 0 | L10: 0
A11: =A10+1 -> 2 | K11: 0 | L11: 0
A12: 3 | K12: 0 | L12: 0
A13: 4 | K13: 0 | L13: 0
A14: 5 | K14: 0 | L14: 0
A15: 6 | K15: 0 | L15: 0
A16: 7 | K16: 0 | L16: 0
A17: 8 | K17: 0 | L17: 0
A18: 9 | K18: 0 | L18: 0
A19: 10 | K19: 0 | L19: 0
A20: 11 | B20: Förberedelse | D20: 20 | K20: 20 | L20: 9.322222222
A21: 12 | B21: Plantering | D21: 15 | K21: 15 | L21: 8.577777778
A22: 13 | E22: 2 | F22: =0.2*$C$2*$C$4*E22/$H$2 -> 0.624 | H22: =0.5*$C$4*E22*$C$2/$H$4 -> 1.114285714 | K22: 1.738285714 | L22: 7.711111111
A23: 14 | E23: 2 | F23: =0.4*$C$2*$C$4*E23/$H$2 -> 1.248 | H23: 1.114285714 | K23: 2.362285714 | L23: 7.011111111
A24: 15 | E24: 2 | F24: =0.6*$C$2*$C$4*E24/$H$2 -> 1.872 | H24: 1.114285714 | K24: 2.986285714 | L24: 6.188888889
A25: 16 | E25: 2 | F25: =0.8*$C$2*$C$4*E25/$H$2 -> 2.496 | G25: =0.2*$C$4*E22*$C$2/$H$3 -> 0.26 | H25: 1.114285714 | K25: 3.870285714 | L25: 5.333333333
A26: 17 | E26: 2 | F26: =0.8*$C$2*$C$4*E26/$H$2 -> 2.496 | G26: =0.4*$C$4*E23*$C$2/$H$3 -> 0.52 | H26: 1.114285714 | K26: 4.130285714 | L26: 4.488888889
A27: 18 | E27: 2 | F27: =0.8*$C$2*$C$4*E27/$H$2 -> 2.496 | G27: =0.6*$C$4*E24*$C$2/$H$3 -> 0.78 | H27: 1.114285714 | K27: 4.390285714 | L27: 3.655555556
A28: 19 | E28: 2 | F28: =0.8*$C$2*$C$4*E28/$H$2 -> 2.496 | G28: =0.8*$C$4*E25*$C$2/$H$3 -> 1.04 | H28: =$C$4*E28*$C$2/$H$4 -> 2.228571429 | K28: 5.764571429 | L28: 3.011111111
A29: 20 | E29: 2 | F29: =$C$2*$C$4*E29/$H$2 -> 3.12 | G29: =$C$4*E29*$C$2/$H$3 -> 1.3 | H29: 2.228571429 | K29: 6.648571429 | L29: 2.033333333
A30: 21 | C30: =0.2*$L$2/$C$3 -> 0.2 | E30: 2 | F30: 3.12 | G30: 1.3 | H30: 2.228571429 | I30: 40 | J30: =C30*$C$2/I30 -> 1.5 | K30: 8.148571429 | L30: 1.788888889
A31: 22 | C31: =0.8*$L$2/$C$3 -> 0.8 | E31: 2 | F31: 3.12 | G31: 1.3 | H31: 2.228571429 | I31: 50 | J31: 4.8 | K31: 11.44857143 | L31: 1.566666667
A32: 23 | C32: =1.2*$L$2/$C$3 -> 1.2 | E32: 2 | F32: 3.12 | G32: 1.3 | H32: 2.228571429 | I32: 60 | J32: 6 | K32: 12.64857143 | L32: 1.4
A33: 24 | C33: =1.4*$L$2/$C$3 -> 1.4 | E33: 2 | F33: 3.12 | G33: 1.3 | H33: 2.228571429 | I33: 60 | J33: 7 | K33: 13.64857143 | L33: 1.266666667
A34: 25 | C34: =1.4*$L$2/$C$3 -> 1.4 | E34: 2 | F34: 3.12 | G34: 1.3 | H34: 2.228571429 | I34: 60 | J34: 7 | K34: 13.64857143 | L34: 1.155555556
A35: 26 | C35: =1.5*$L$2/$C$3 -> 1.5 | E35: 2 | F35: 3.12 | G35: 1.3 | H35: 2.228571429 | I35: 60 | J35: 7.5 | K35: 14.14857143 | L35: 1.088888889
A36: 27 | C36: =1.6*$L$2/$C$3 -> 1.6 | E36: 2 | F36: 3.12 | G36: 1.3 | H36: 2.228571429 | I36: 60 | J36: 8 | K36: 14.64857143 | L36: 1
A37: 28 | C37: =1.7*$L$2/$C$3 -> 1.7 | E37: 2 | F37: 3.12 | G37: 1.3 | H37: 2.228571429 | I37: 60 | J37: 8.5 | K37: 15.14857143 | L37: 0.9333333333
A38: 29 | C38: =1.7*$L$2/$C$3 -> 1.7 | E38: 2 | F38: 3.12 | G38: 1.3 | H38: 2.228571429 | I38: 60 | J38: 8.5 | K38: 15.14857143 | L38: 0.9222222222
A39: 30 | C39: 1.7 | E39: 2 | F39: 3.12 | G39: 1.3 | H39: 2.228571429 | I39: 60 | J39: 8.5 | K39: 15.14857143 | L39: 0.9333333333
A40: 31 | C40: 1.7 | E40: 2 | F40: 3.12 | G40: 1.3 | H40: 2.228571429 | I40: 60 | J40: 8.5 | K40: 15.14857143 | L40: 1.022222222
A41: 32 | C41: =1.6*$L$2/$C$3 -> 1.6 | E41: 2 | F41: 3.12 | G41: 1.3 | H41: 2.228571429 | I41: 60 | J41: 8 | K41: 14.64857143 | L41: 1.077777778
A42: 33 | C42: =1.5*$L$2/$C$3 -> 1.5 | E42: 2 | F42: 3.12 | G42: 1.3 | H42: 2.228571429 | I42: 60 | J42: 7.5 | K42: 14.14857143 | L42: 1.133333333
A43: 34 | C43: =1.4*$L$2/$C$3 -> 1.4 | E43: 2 | F43: 3.12 | G43: 1.3 | H43: 2.228571429 | I43: 60 | J43: 7 | K43: 13.64857143 | L43: 1.277777778
A44: 35 | C44: =1.4*$L$2/$C$3 -> 1.4 | E44: 2 | F44: 3.12 | G44: 1.3 | H44: 2.228571429 | I44: 60 | J44: 7 | K44: 13.64857143 | L44: 1.522222222
A45: 36 | C45: =1.3*$L$2/$C$3 -> 1.3 | E45: 2 | F45: 3.12 | G45: 1.3 | H45: 2.228571429 | I45: 60 | J45: 6.5 | K45: 13.14857143 | L45: 1.822222222
A46: 37 | B46: Toppning | C46: =1.1*$L$2/$C$3 -> 1.1 | E46: 2 | F46: =0.5*$C$2*$C$4*E46/$H$2 -> 1.56 | G46: 1.3 | H46: 2.228571429 | I46: 60 | J46: 5.5 | K46: 10.58857143 | L46: 2.388888889
A47: 38 | C47: =1*$L$2/$C$3 -> 1 | E47: 2 | F47: =0.5*$C$2*$C$4*E47/$H$2 -> 1.56 | G47: =0.5*$C$4*E47*$C$2/$H$3 -> 0.65 | H47: =1.5*$C$4*E47*$C$2/$H$4 -> 3.342857143 | I47: 60 | J47: 5 | K47: 10.55285714 | L47: 3.1
A48: 39 | C48: =0.9*$L$2/$C$3 -> 0.9 | E48: 2 | F48: =0.5*$C$2*$C$4*E48/$H$2 -> 1.56 | G48: =0.5*$C$4*E48*$C$2/$H$3 -> 0.65 | H48: =1.5*$C$4*E48*$C$2/$H$4 -> 3.342857143 | I48: 60 | J48: 4.5 | K48: 10.05285714 | L48: 3.677777778
A49: 40 | C49: =0.8*$L$2/$C$3 -> 0.8 | E49: 2 | F49: =0.5*$C$2*$C$4*E49/$H$2 -> 1.56 | G49: =0.5*$C$4*E49*$C$2/$H$3 -> 0.65 | H49: =1.5*$C$4*E49*$C$2/$H$4 -> 3.342857143 | I49: 60 | J49: 4 | K49: 9.552857143 | L49: 4.355555556
A50: 41 | C50: =0.7*$L$2/$C$3 -> 0.7 | E50: 2 | F50: =0.5*$C$2*$C$4*E50/$H$2 -> 1.56 | G50: =0.5*$C$4*E50*$C$2/$H$3 -> 0.65 | H50: =1.5*$C$4*E50*$C$2/$H$4 -> 3.342857143 | I50: 60 | J50: 3.5 | K50: 9.052857143 | L50: 5.022222222
A51: 42 | C51: =0.5*$L$2/$C$3 -> 0.5 | E51: 2 | H51: =$C$4*E51*$C$2/$H$4 -> 2.228571429 | I51: 60 | J51: 2.5 | K51: 4.728571429 | L51: 5.733333333
A52: 43 | C52: =0.9*$L$2/$C$3 -> 0.9 | E52: 2 | H52: =0.5*$C$4*E52*$C$2/$H$4 -> 1.114285714 | K52: =D52+F52+G52+H52+J52 -> 1.114285714 | L52: 6.333333333
A53: 44 | B53: Utrivning | D53: 12 | K53: =D53+F53+G53+H53+J53 -> 12 | L53: 0
A54: 45 | B54: Städning | D54: 8 | K54: 8 | L54: 0
A55: 46 | K55: 0 | L55: 0
A56: 47 | K56: 0 | L56: 0
A57: 48 | K57: 0 | L57: 0
A58: 49 | L58: 0
A59: 50 | L59: 0
A60: 51 | L60: 0
A61: 52 | L61: 0
B62: Summa | C62: =SUM(C10:C61) -> 28 | D62: =SUM(D8:D61) -> 55 | F62: =SUM(F8:F61) -> 74.568 | G62: =SUM(G8:G61) -> 28.6 | H62: =SUM(H8:H61) -> 65.74285714 | J62: =SUM(J8:J61) -> 136.8 | K62: =SUM(K8:K61) -> 360.7108571 | L62: =SUM(L10:L61) -> 107.8555556
J64: Pellets energiinnehåll | L64: 4.7 | M64: MW/ton
J65: Pellets | L65: =L62/L64 -> 22.94799054 | M65: ton

Sheet Inv-båghus
A1: Typföretag 1
A2: Litet bågväxthus täckt med dubbelfolie och takventilation. 30x10 m
A3: Invändig frihöjd ca 4 m. Totalhöjd ca 6 m
A4: Varmluftspanna som eldas med pelltes
C6: i kalkylen | D6: **
A7: Växthustyp | B7: Båghus med dubbelplast
A8: Växthusareal | B8: 300 | C8: m2
F9: Avskrivnings-
A10: Kostnader | B10: kr/m2 | C10: m2 | D10: Summa | F10: tid
A12: Växthusstomme | C12: =$B$8 -> 300 | D12: 180000 | F12: 10
A13: Täckmaterial | B13: 60 | C13: =$B$8 -> 300 | D13: 20000 | F13: 5
A14: Markarbeten | B14: 70 | C14: 300 | D14: =C14*B14 -> 21000 | F14: 10
A15: Vävar | B15: inga | C15: 300
A16: Panna, skorsten mm 60 kW | C16: 300 | D16: 150000 | F16: 10
A17: Ackumulatortank | B17: ingen | C17: 300
A18: Värmefördelningssystem | C18: 300 | D18: 10000 | F18: 5
A19: Fläktar | C19: 300 | D19: 8000 | F19: 10
A20: Klimatstyrning | C20: 300 | D20: 60000 | F20: 10
A21: Gödselblandare | C21: 300 | D21: 18000 | F21: 10
A22: Droppbevattning | B22: 80 | C22: 300 | D22: =B22*C22 -> 24000 | F22: 5
A23: Nedläggningssystem | B23: 20 | C23: 300 | D23: =B23*C23 -> 6000 | F23: 10
A24: Vagnar | C24: 300 | D24: 15000 | F24: 10
A25: Sorteringsutrustning | B25: ingen | C25: 300
A26: Kyllager | B26: inget | C26: 300
A28: Summa | B28: =D28/C28 -> 1706.666667 | C28: 300 | D28: =SUM(D12:D26) -> 512000
A30: Räntesats | B30: 0.05
B31: Avskrivn. | C31: Avskrivn. | F31: Annuitets- | G31: Årlig
B32: underlag | C32: tid (år) | D32: Avskrivning | F32: faktor | G32: räntekostn.
A33: Årskostnader 300 m2
A34: Växthus mm 10 år | B34: =D12+D14+D16+D19+D20+D21+D23+D24 -> 458000 | C34: 10 | D34: =B34/C34 -> 45800 | F34: =$B$30/(1-(1+$B$30)^-C34) -> 0.129504575 | G34: =F34*B34-D34 -> 13513.09533
A35: Inventarier 5 år | B35: =D13+D18+D22 -> 54000 | C35: 5 | D35: =B35/C35 -> 10800 | F35: =$B$30/(1-(1+$B$30)^-C35) -> 0.2309747981 | G35: =F35*B35-D35 -> 1672.639099
B36: S:a årskostnad | D36: =SUM(D34:D35) -> 56600 | G36: =SUM(G34:G35) -> 15185.73443 | H36: =SUM(D36:G36) -> 71785.73443
B37: Årskostnad/m2 | D37: =D36/250 -> 226.4 | G37: =G36/250 -> 60.74293773 | H37: =SUM(D37:G37) -> 287.1429377
